[Event "European Womens-ch 2025"]
[Site "Rhodes"]
[Date "2025.04.04"]
[Round "5.34"]
[White "Allahverdiyeva, Ayan"]
[Black "Paasikangas, Johanna"]
[Result "1-0"]
[Annotator "ChessBase"]
[ECO "C70"]
[WhiteElo "2266"]
[BlackElo "2106"]
[PlyCount "75"]
[EventDate "2025.03.29"]
[EventType "swiss"]
[EventCountry "GRE"]
[SourceTitle "playchess.com"]
[Source "ChessBase"]
[SourceQuality "1"]
[TimeControl "40/5400+30:1800+30"]

1. e4 {[%emt 0:00:02]} e5 {[%emt 0:01:58]} 2. Nf3 {[%emt 0:00:04]} Nc6 {[%emt 0:00:11]} 3. Bb5 {[%emt 0:00:05]} a6 {[%emt 0:00:06]} 4. Ba4 {[%emt 0:00:01]} d6 {[%emt 0:00:52]} 5. O-O {[%emt 0:00:19]} b5 {[%emt 0:05:50]} 6. Bb3 {[%emt 0:00:22]} Na5 {[%emt 0:00:08]} 7. d4 {[%emt 0:01:11]} Nxb3 {[%emt 0:00:08]} 8. axb3 {[%emt 0:00:03]} f6 {[%emt 0:03:15]} 9. c4 {[%emt 0:06:33]} Bd7 {[%emt 0:06:37]} 10. dxe5 {[%emt 0:04:34]} fxe5 {[%emt 0:12:13]} 11. Nxe5 {[%emt 0:00:20]} dxe5 {[%emt 0:03:04]} 12. Qh5+ {[%emt 0:00:05]} Ke7 {[%emt 0:03:12]} 13. Be3 {[%emt 0:04:56]} Nf6 {[%emt 0:02:01]} 14. Qxe5+ {[%emt 0:00:44]} Kf7 {[%emt 0:03:33]} 15. Qf4 {[%emt 0:00:12]} Kg8 {[%emt 0:01:58]} 16. e5 {[%emt 0:00:04]} Ng4 {[%emt 0:05:57]} 17. cxb5 {[%emt 0:04:59]} Be6 {[%emt 0:04:53]} 18. bxa6 {[%emt 0:01:49]} Qd5 {[%emt 0:04:24]} 19. Bd4 {[%emt 0:03:34]} c5 {[%emt 0:03:37]} 20. Bc3 {[%emt 0:01:06]} Qxb3 {[%emt 0:08:25]} 21. Nd2 {[%emt 0:07:40]} Qd5 {[%emt 0:01:21]} 22. Ne4 {[%emt 0:05:35]} Nh6 {[%emt 0:01:46]} 23. a7 {[%emt 0:06:39]} Nf5 {[%emt 0:01:42]} 24. Ng5 {[%emt 0:04:43]} Be7 {[%emt 0:04:36]} 25. Nxe6 {[%emt 0:05:05]} Qxe6 {[%emt 0:00:06]} 26. Qf3 {[%emt 0:01:35]} Qc8 {[%emt 0:02:17]} 27. Rfd1 {[%emt 0:04:01]} h5 {[%emt 0:02:37]} 28. Rd7 {[%emt 0:06:04]} g6 {[%emt 0:07:12]} 29. Qd5+ {[%emt 0:00:23]} Kg7 {[%emt 0:01:16]} 30. e6+ {[%emt 0:01:10]} Kh6 {[%emt 0:01:31]} 31. Bxh8 {[%emt 0:02:18]} Qxh8 {[%emt 0:00:07]} 32. Rb7 {[%emt 0:00:51]} Bd6 {[%emt 0:03:01]} 33. Qd2+ {[%emt 0:02:39]} g5 {[%emt 0:01:04]} 34. Qd5 {[%emt 0:01:16]} Qe5 {[%emt 0:01:32]} 35. Qxe5 {[%emt 0:00:11]} Bxe5 {[%emt 0:00:09]} 36. e7 {[%emt 0:00:03]} Ng7 {[%emt 0:03:01]} 37. Ra6+ {[%emt 0:00:29]} Kh7 {[%emt 0:00:07]} 38. Re6 {[%emt 0:00:28]} 1-0

[Event "European Womens-ch 2025"]
[Site "Rhodes"]
[Date "2025.04.04"]
[Round "5.35"]
[White "Deak-Sala, Emilia"]
[Black "Schneider, Jana"]
[Result "1/2-1/2"]
[Annotator "ChessBase"]
[ECO "A05"]
[WhiteElo "2112"]
[BlackElo "2251"]
[PlyCount "57"]
[EventDate "2025.03.29"]
[EventType "swiss"]
[EventCountry "GRE"]
[SourceTitle "playchess.com"]
[Source "ChessBase"]
[SourceQuality "1"]
[TimeControl "40/5400+30:1800+30"]

1. Nf3 {[%emt 0:04:55]} d5 {[%emt 0:00:12]} 2. g3 {[%emt 0:00:06]} Nf6 {[%emt 0:00:08]} 3. Bg2 {[%emt 0:00:05]} e6 {[%emt 0:00:07]} 4. O-O {[%emt 0:00:04]} Be7 {[%emt 0:00:07]} 5. d3 {[%emt 0:00:03]} c5 {[%emt 0:00:21]} 6. Nbd2 {[%emt 0:00:07]} b5 {[%emt 0:00:31]} 7. e4 {[%emt 0:00:18]} Bb7 {[%emt 0:00:14]} 8. e5 {[%emt 0:00:26]} Nfd7 {[%emt 0:00:28]} 9. Re1 {[%emt 0:00:12]} Nc6 {[%emt 0:00:48]} 10. Nf1 {[%emt 0:00:14]} a5 {[%emt 0:01:17]} 11. h4 {[%emt 0:00:22]} h6 {[%emt 0:00:14]} 12. h5 {[%emt 0:04:05]} a4 {[%emt 0:00:41]} 13. a3 {[%emt 0:00:07]} Qb6 {[%emt 0:01:15]} 14. Bf4 {[%emt 0:01:43]} Bd8 {[%emt 0:07:58]} 15. Ne3 {[%emt 0:08:18]} d4 {[%emt 0:03:06]} 16. Nf1 {[%emt 0:02:02]} Bc7 {[%emt 0:03:30]} 17. Qe2 {[%emt 0:02:14]} Ne7 {[%emt 0:15:16]} 18. g4 {[%emt 0:04:07]} Bd5 {[%emt 0:11:19]} 19. N1d2 {[%emt 0:05:55]} b4 {[%emt 0:07:57]} 20. Ne4 {[%emt 0:17:53]} Nc6 {[%emt 0:03:31]} 21. c4 {[%emt 0:03:06]} bxc3 {[%emt 0:11:56]} 22. bxc3 {[%emt 0:00:06]} Na5 {[%emt 0:00:12]} 23. c4 {[%emt 0:01:04]} Bc6 {[%emt 0:00:30]} 24. Rab1 {[%emt 0:01:06]} Nb3 {[%emt 0:00:16]} 25. g5 {[%emt 0:07:55]} hxg5 {[%emt 0:07:43]} 26. Nfxg5 {[%emt 0:00:11]} Rf8 {[%emt 0:00:26]} 27. Nh7 {[%emt 0:19:44]} Rh8 {[%emt 0:00:36]} 28. Nhg5 {[%emt 0:00:05]} Rf8 {[%emt 0:00:12]} 29. Nh7 {[%emt 0:00:09]} 1/2-1/2

[Event "European Womens-ch 2025"]
[Site "Rhodes"]
[Date "2025.04.04"]
[Round "5.36"]
[White "Wikar, Martyna"]
[Black "Ter-Avetisjana, Agnesa Stepania"]
[Result "1-0"]
[Annotator "ChessBase"]
[ECO "B13"]
[WhiteElo "2239"]
[BlackElo "2100"]
[PlyCount "89"]
[EventDate "2025.03.29"]
[EventType "swiss"]
[EventCountry "GRE"]
[SourceTitle "playchess.com"]
[Source "ChessBase"]
[SourceQuality "1"]
[TimeControl "40/5400+30:1800+30"]

1. e4 {[%emt 0:01:46]} c6 {[%emt 0:00:06]} 2. d4 {[%emt 0:00:16]} d5 {[%emt 0:00:05]} 3. exd5 {[%emt 0:00:07]} cxd5 {[%emt 0:00:04]} 4. Bd3 {[%emt 0:00:08]} Nc6 {[%emt 0:00:06]} 5. c3 {[%emt 0:00:08]} Qc7 {[%emt 0:01:06]} 6. h3 {[%emt 0:00:47]} g6 {[%emt 0:01:23]} 7. Nf3 {[%emt 0:01:38]} Bf5 {[%emt 0:02:20]} 8. O-O {[%emt 0:00:20]} Bxd3 {[%emt 0:02:52]} 9. Qxd3 {[%emt 0:00:07]} Bg7 {[%emt 0:00:14]} 10. Re1 {[%emt 0:02:47]} Nf6 {[%emt 0:03:06]} 11. Be3 {[%emt 0:06:14]} O-O {[%emt 0:05:32]} 12. Nbd2 {[%emt 0:00:50]} Rfe8 {[%emt 0:02:48]} 13. Nb3 {[%emt 0:04:33]} Nd7 {[%emt 0:03:07]} 14. Re2 {[%emt 0:02:18]} a6 {[%emt 0:02:37]} 15. Rae1 {[%emt 0:01:23]} b5 {[%emt 0:02:46]} 16. a3 {[%emt 0:00:12]} e6 {[%emt 0:04:22]} 17. h4 {[%emt 0:00:59]} Na5 {[%emt 0:14:44]} 18. Nxa5 {[%emt 0:09:25]} Qxa5 {[%emt 0:00:30]} 19. h5 {[%emt 0:00:02]} Qc7 {[%emt 0:05:35]} 20. Bc1 {[%emt 0:13:36]} Qc4 {[%emt 0:10:28]} 21. Qe3 {[%emt 0:03:49]} a5 {[%emt 0:14:44]} 22. Qf4 {[%emt 0:13:13]} Ra7 {[%emt 0:04:46]} 23. hxg6 {[%emt 0:06:07]} hxg6 {[%emt 0:01:15]} 24. Qh4 {[%emt 0:00:32]} e5 {[%emt 0:06:44]} 25. Bh6 {[%emt 0:09:53]} e4 {[%emt 0:03:56]} 26. Re3 {[%emt 0:02:05]} f6 {[%emt 0:02:54]} 27. Nd2 {[%emt 0:07:06]} Qc8 {[%emt 0:00:17]} 28. Rh3 {[%emt 0:00:56]} g5 {[%emt 0:01:28]} 29. Qh5 {[%emt 0:03:32]} Nf8 {[%emt 0:00:16]} 30. f4 {[%emt 0:03:06]} g4 {[%emt 0:04:28]} 31. Qxd5+ {[%emt 0:01:53]} Rf7 {[%emt 0:00:47]} 32. Rh5 {[%emt 0:00:41]} Ng6 {[%emt 0:00:33]} 33. Bxg7 {[%emt 0:01:52]} Nxf4 {[%emt 0:00:27]} 34. Rh8+ {[%emt 0:00:09]} Kxg7 {[%emt 0:01:04]} 35. Rh7+ {[%emt 0:00:06]} Kxh7 {[%emt 0:00:00]} 36. Qxf7+ {[%emt 0:00:04]} Kh6 {[%emt 0:00:00]} 37. Qxf6+ {[%emt 0:02:10]} Ng6 {[%emt 0:00:00]} 38. Rxe4 {[%emt 0:00:59]} Rf8 {[%emt 0:00:00]} 39. Qe6 {[%emt 0:00:50]} Qxe6 {[%emt 0:01:39]} 40. Rxe6 {[%emt 0:00:00]} Kg5 {[%emt 0:00:00]} 41. g3 {[%emt 0:00:53]} b4 {[%emt 0:00:29]} 42. Ra6 {[%emt 0:01:40]} Rf5 {[%emt 0:00:33]} 43. c4 {[%emt 0:02:17]} bxa3 {[%emt 0:00:21]} 44. bxa3 {[%emt 0:00:06]} Ne7 {[%emt 0:00:02]} 45. Kg2 {[%emt 0:02:11]} 1-0

[Event "European Womens-ch 2025"]
[Site "Rhodes"]
[Date "2025.04.04"]
[Round "5.37"]
[White "Sandu, Mihaela"]
[Black "Mihaljevic, Eva"]
[Result "1/2-1/2"]
[Annotator "ChessBase"]
[ECO "B92"]
[WhiteElo "2230"]
[BlackElo "2039"]
[PlyCount "84"]
[EventDate "2025.03.29"]
[EventType "swiss"]
[EventCountry "GRE"]
[SourceTitle "playchess.com"]
[Source "ChessBase"]
[SourceQuality "1"]
[TimeControl "40/5400+30:1800+30"]

1. e4 {[%emt 0:02:51]} c5 {[%emt 0:00:08]} 2. Nf3 {[%emt 0:00:10]} d6 {[%emt 0:00:10]} 3. d4 {[%emt 0:00:05]} cxd4 {[%emt 0:00:08]} 4. Nxd4 {[%emt 0:00:04]} Nf6 {[%emt 0:00:10]} 5. Nc3 {[%emt 0:00:03]} a6 {[%emt 0:00:21]} 6. Be2 {[%emt 0:00:07]} e5 {[%emt 0:00:41]} 7. Nb3 {[%emt 0:00:05]} Be7 {[%emt 0:00:32]} 8. O-O {[%emt 0:00:10]} O-O {[%emt 0:00:28]} 9. Re1 {[%emt 0:01:14]} Be6 {[%emt 0:02:16]} 10. Bf3 {[%emt 0:00:53]} Nbd7 {[%emt 0:01:12]} 11. a4 {[%emt 0:01:10]} Rc8 {[%emt 0:02:49]} 12. a5 {[%emt 0:00:30]} h6 {[%emt 0:02:42]} 13. h3 {[%emt 1:29:38]} Qc7 {[%emt 0:05:32]} 14. Be3 {[%emt 0:00:00]} Nh7 {[%emt 0:03:14]} 15. Nd2 {[%emt 0:00:00]} Ng5 {[%emt 0:08:26]} 16. Be2 {[%emt 0:00:00]} Nf6 {[%emt 0:21:15]} 17. Bxg5 {[%emt 0:00:00]} hxg5 {[%emt 0:00:12]} 18. Nf1 {[%emt 0:00:00]} Qc5 {[%emt 0:07:31]} 19. Bd3 {[%emt 0:00:00]} Bd8 {[%emt 0:05:04]} 20. Re3 {[%emt 0:00:00]} g4 {[%emt 0:06:59]} 21. Nd5 {[%emt 0:00:00]} Bxd5 {[%emt 0:08:34]} 22. exd5 {[%emt 0:00:00]} Nxd5 {[%emt 0:00:52]} 23. Re4 {[%emt 0:05:00]} Be7 {[%emt 0:13:57]} 24. Rc4 {[%emt 0:00:00]} Qa7 {[%emt 0:00:18]} 25. Rxc8 {[%emt 0:00:00]} Rxc8 {[%emt 0:00:02]} 26. Bf5 {[%emt 0:00:00]} Rc5 {[%emt 0:00:36]} 27. Bxg4 {[%emt 0:00:00]} Qb8 {[%emt 0:01:53]} 28. Nd2 {[%emt 0:00:00]} Nf6 {[%emt 0:02:18]} 29. c4 {[%emt 0:00:00]} Nxg4 {[%emt 0:03:37]} 30. hxg4 {[%emt 0:00:00]} Qd8 {[%emt 0:01:21]} 31. b4 {[%emt 0:00:00]} Rc6 {[%emt 0:00:35]} 32. b5 {[%emt 0:00:00]} Rc5 {[%emt 0:00:43]} 33. Qa4 {[%emt 0:03:42]} d5 {[%emt 0:00:21]} 34. bxa6 {[%emt 0:00:14]} bxa6 {[%emt 0:00:21]} 35. cxd5 {[%emt 0:00:04]} Qxd5 {[%emt 0:01:38]} 36. Qe8+ {[%emt 0:00:49]} Bf8 {[%emt 0:00:40]} 37. Nf3 {[%emt 0:00:27]} e4 {[%emt 0:00:34]} 38. Nh4 {[%emt 0:00:35]} Qe5 {[%emt 0:00:19]} 39. Qxe5 {[%emt 0:01:00]} Rxe5 {[%emt 0:00:54]} 40. Nf5 {[%emt 0:00:00]} g6 {[%emt 0:00:00]} 41. Ne3 {[%emt 0:01:09]} Bb4 {[%emt 0:03:34]} 42. Ra4 {[%emt 0:15:53]} Rb5 {[%emt 0:02:08]} 1/2-1/2

[Event "European Womens-ch 2025"]
[Site "Rhodes"]
[Date "2025.04.04"]
[Round "5.38"]
[White "Zagorac, Lara"]
[Black "Rudzinska, Michalina"]
[Result "1/2-1/2"]
[Annotator "ChessBase"]
[ECO "E11"]
[WhiteElo "2106"]
[BlackElo "2223"]
[PlyCount "76"]
[EventDate "2025.03.29"]
[EventType "swiss"]
[EventCountry "GRE"]
[SourceTitle "playchess.com"]
[Source "ChessBase"]
[SourceQuality "1"]
[TimeControl "40/5400+30:1800+30"]

1. d4 {[%emt 0:00:02]} d5 {[%emt 0:00:59]} 2. Nf3 {[%emt 0:00:11]} Nf6 {[%emt 0:00:23]} 3. c4 {[%emt 0:00:21]} e6 {[%emt 0:00:20]} 4. g3 {[%emt 0:00:29]} Bb4+ {[%emt 0:00:53]} 5. Bd2 {[%emt 0:00:11]} a5 {[%emt 0:00:12]} 6. Qc2 {[%emt 0:00:13]} O-O {[%emt 0:01:39]} 7. Bg2 {[%emt 0:00:09]} c5 {[%emt 0:00:23]} 8. cxd5 {[%emt 0:00:14]} cxd4 {[%emt 0:00:33]} 9. Nxd4 {[%emt 0:00:30]} Qb6 {[%emt 0:00:57]} 10. e3 {[%emt 0:00:27]} exd5 {[%emt 0:00:14]} 11. O-O {[%emt 0:00:12]} Nc6 {[%emt 0:00:36]} 12. Nxc6 {[%emt 0:00:22]} bxc6 {[%emt 0:00:05]} 13. Rc1 {[%emt 0:00:12]} Rb8 {[%emt 0:00:40]} 14. Nc3 {[%emt 0:00:47]} h5 {[%emt 0:01:40]} 15. a3 {[%emt 0:00:33]} Bd6 {[%emt 0:23:04]} 16. Na4 {[%emt 0:05:56]} Qd8 {[%emt 0:00:08]} 17. Qxc6 {[%emt 0:26:10]} Be5 {[%emt 0:01:07]} 18. Qc2 {[%emt 0:05:35]} Ng4 {[%emt 0:14:08]} 19. Bc3 {[%emt 0:10:00]} Be6 {[%emt 0:04:24]} 20. Bxe5 {[%emt 0:08:21]} Nxe5 {[%emt 0:00:06]} 21. Nc5 {[%emt 0:01:18]} Qf6 {[%emt 0:01:07]} 22. b3 {[%emt 0:09:27]} Rfc8 {[%emt 0:07:27]} 23. Qd1 {[%emt 0:04:02]} Bf5 {[%emt 0:29:10]} 24. Qd4 {[%emt 0:03:20]} Qe7 {[%emt 0:01:41]} 25. b4 {[%emt 0:06:36]} Rd8 {[%emt 0:02:52]} 26. Na6 {[%emt 0:01:05]} Rb7 {[%emt 0:00:29]} 27. Nc5 {[%emt 0:00:14]} Rb5 {[%emt 0:00:41]} 28. Qf4 {[%emt 0:01:37]} Bg4 {[%emt 0:00:39]} 29. h4 {[%emt 0:16:26]} Rd6 {[%emt 0:02:33]} 30. Qd4 {[%emt 0:00:00]} axb4 {[%emt 0:06:20]} 31. axb4 {[%emt 0:00:00]} Rb8 {[%emt 0:00:00]} 32. Nd3 {[%emt 0:00:00]} Nf3+ {[%emt 0:00:00]} 33. Bxf3 {[%emt 0:00:00]} Bxf3 {[%emt 0:00:00]} 34. Qf4 {[%emt 0:00:00]} Be4 {[%emt 0:00:00]} 35. Nc5 {[%emt 0:00:00]} Rxb4 {[%emt 0:02:30]} 36. Nxe4 {[%emt 0:00:00]} dxe4 {[%emt 0:00:00]} 37. Ra8+ {[%emt 0:00:00]} Rd8 {[%emt 0:00:12]} 38. Rxd8+ {[%emt 0:00:00]} Qxd8 {[%emt 0:01:18]} 1/2-1/2

[Event "European Womens-ch 2025"]
[Site "Rhodes"]
[Date "2025.04.04"]
[Round "5.39"]
[White "Hapala, Elisabeth"]
[Black "Khurtsilava, Inga"]
[Result "1-0"]
[Annotator "ChessBase"]
[ECO "B15"]
[WhiteElo "2092"]
[BlackElo "2214"]
[PlyCount "67"]
[EventDate "2025.03.29"]
[EventType "swiss"]
[EventCountry "GRE"]
[SourceTitle "playchess.com"]
[Source "ChessBase"]
[SourceQuality "1"]
[TimeControl "40/5400+30:1800+30"]

1. e4 {[%emt 0:00:00]} c6 {[%emt 0:04:56]} 2. d4 {[%emt 0:00:07]} d5 {[%emt 0:00:05]} 3. Nc3 {[%emt 0:00:20]} dxe4 {[%emt 0:00:04]} 4. Nxe4 {[%emt 0:00:04]} Nf6 {[%emt 0:00:03]} 5. Nxf6+ {[%emt 0:00:11]} exf6 {[%emt 0:00:04]} 6. c3 {[%emt 0:00:09]} Bd6 {[%emt 0:00:05]} 7. Bd3 {[%emt 0:00:13]} O-O {[%emt 0:00:05]} 8. Qc2 {[%emt 0:00:10]} h5 {[%emt 0:00:06]} 9. Ne2 {[%emt 0:00:30]} Re8 {[%emt 0:00:06]} 10. Be3 {[%emt 0:00:45]} Nd7 {[%emt 0:00:07]} 11. c4 {[%emt 0:00:33]} Nf8 {[%emt 0:01:46]} 12. O-O-O {[%emt 0:00:18]} Be6 {[%emt 0:00:27]} 13. Kb1 {[%emt 0:00:20]} Rc8 {[%emt 0:04:38]} 14. Nc3 {[%emt 0:05:50]} Bb8 {[%emt 0:29:23]} 15. Rhe1 {[%emt 0:13:22]} g6 {[%emt 0:07:26]} 16. h3 {[%emt 0:11:28]} f5 {[%emt 0:01:34]} 17. g4 {[%emt 0:19:47]} fxg4 {[%emt 0:24:24]} 18. Ne4 {[%emt 0:09:09]} gxh3 {[%emt 0:00:15]} 19. Bg5 {[%emt 0:00:14]} Qa5 {[%emt 0:00:43]} 20. Nf6+ {[%emt 0:02:42]} Kh8 {[%emt 0:01:57]} 21. Bd2 {[%emt 0:10:34]} Qd8 {[%emt 0:19:52]} 22. Bc3 {[%emt 0:00:48]} Re7 {[%emt 0:01:59]} 23. d5 {[%emt 0:03:20]} cxd5 {[%emt 0:00:07]} 24. Qd2 {[%emt 0:00:29]} Kg7 {[%emt 0:01:03]} 25. Nxh5+ {[%emt 0:00:34]} Kh7 {[%emt 0:00:08]} 26. Nf6+ {[%emt 0:00:32]} Kg7 {[%emt 0:00:06]} 27. Nxd5+ {[%emt 0:02:23]} f6 {[%emt 0:01:56]} 28. Bxf6+ {[%emt 0:00:19]} Kf7 {[%emt 0:00:04]} 29. Bxe7 {[%emt 0:00:28]} Qd7 {[%emt 0:00:04]} 30. Qg5 {[%emt 0:03:17]} Bxd5 {[%emt 0:00:54]} 31. Bxg6+ {[%emt 0:01:21]} Nxg6 {[%emt 0:00:56]} 32. Qf6+ {[%emt 0:00:05]} Ke8 {[%emt 0:00:13]} 33. Qxg6+ {[%emt 0:00:29]} Bf7 {[%emt 0:00:03]} 34. Bf6+ {[%emt 0:00:06]} 1-0

[Event "European Womens-ch 2025"]
[Site "Rhodes"]
[Date "2025.04.04"]
[Round "5.40"]
[White "Huseynova, Lala"]
[Black "Mamedjarova, Turkan"]
[Result "1/2-1/2"]
[Annotator "ChessBase"]
[ECO "C95"]
[WhiteElo "2065"]
[BlackElo "2206"]
[PlyCount "120"]
[EventDate "2025.03.29"]
[EventType "swiss"]
[EventCountry "GRE"]
[SourceTitle "playchess.com"]
[Source "ChessBase"]
[SourceQuality "1"]
[TimeControl "40/5400+30:1800+30"]

1. e4 {[%emt 0:00:02]} e5 {[%emt 0:00:10]} 2. Nf3 {[%emt 0:00:05]} Nc6 {[%emt 0:00:19]} 3. Bb5 {[%emt 0:00:05]} a6 {[%emt 0:00:06]} 4. Ba4 {[%emt 0:00:01]} Nf6 {[%emt 0:00:07]} 5. O-O {[%emt 0:00:04]} Be7 {[%emt 0:00:16]} 6. Re1 {[%emt 0:00:25]} b5 {[%emt 0:00:10]} 7. Bb3 {[%emt 0:00:02]} d6 {[%emt 0:00:12]} 8. c3 {[%emt 0:00:26]} O-O {[%emt 0:00:08]} 9. h3 {[%emt 0:00:09]} Nb8 {[%emt 0:00:43]} 10. d4 {[%emt 0:00:37]} Nbd7 {[%emt 0:00:05]} 11. c4 {[%emt 0:03:17]} Bb7 {[%emt 0:03:45]} 12. Nc3 {[%emt 0:06:47]} c6 {[%emt 0:15:09]} 13. a3 {[%emt 1:25:00]} Rb8 {[%emt 0:05:47]} 14. Bg5 {[%emt 0:00:00]} h6 {[%emt 0:05:34]} 15. Bh4 {[%emt 0:00:00]} Nh5 {[%emt 0:01:29]} 16. Bxe7 {[%emt 0:00:00]} Qxe7 {[%emt 0:00:01]} 17. cxb5 {[%emt 0:00:00]} axb5 {[%emt 0:02:50]} 18. g3 {[%emt 0:00:00]} g6 {[%emt 0:02:21]} 19. Nh4 {[%emt 0:00:00]} Kh7 {[%emt 0:04:19]} 20. d5 {[%emt 0:00:00]} Nc5 {[%emt 0:04:07]} 21. Bc2 {[%emt 0:00:00]} Nf4 {[%emt 0:03:09]} 22. b4 {[%emt 0:00:00]} Na4 {[%emt 0:01:17]} 23. Nxa4 {[%emt 0:00:00]} bxa4 {[%emt 0:00:14]} 24. dxc6 {[%emt 0:00:00]} Bxc6 {[%emt 0:02:38]} 25. Nf3 {[%emt 0:00:00]} Nxh3+ {[%emt 0:00:33]} 26. Kg2 {[%emt 0:00:00]} Qe6 {[%emt 0:08:21]} 27. Rh1 {[%emt 0:00:00]} Bd7 {[%emt 0:00:14]} 28. Nh4 {[%emt 0:00:00]} Ng5 {[%emt 0:02:10]} 29. Qd2 {[%emt 0:00:39]} Kg7 {[%emt 0:00:57]} 30. Rad1 {[%emt 0:01:38]} Rbc8 {[%emt 0:01:37]} 31. Bb1 {[%emt 0:00:53]} Bc6 {[%emt 0:01:31]} 32. Nf3 {[%emt 0:02:11]} Rh8 {[%emt 0:06:43]} 33. Nxg5 {[%emt 0:01:12]} hxg5 {[%emt 0:00:02]} 34. Qxg5 {[%emt 0:01:22]} f5 {[%emt 0:02:36]} 35. Qe3 {[%emt 0:01:03]} d5 {[%emt 0:02:21]} 36. Qa7+ {[%emt 0:01:17]} Kf6 {[%emt 0:01:18]} 37. b5 {[%emt 0:00:10]} Ba8 {[%emt 0:01:55]} 38. b6 {[%emt 0:00:12]} fxe4 {[%emt 0:09:23]} 39. Bxe4 {[%emt 0:01:46]} Rxh1 {[%emt 0:05:38]} 40. Rxh1 {[%emt 0:00:00]} dxe4 {[%emt 0:00:00]} 41. b7 {[%emt 0:02:19]} Bxb7 {[%emt 0:08:43]} 42. Qxb7 {[%emt 0:00:24]} Qc6 {[%emt 0:01:20]} 43. Rb1 {[%emt 0:07:30]} Qxb7 {[%emt 0:01:09]} 44. Rxb7 {[%emt 0:00:02]} Rc3 {[%emt 0:01:37]} 45. Rb4 {[%emt 0:00:06]} Rxa3 {[%emt 0:00:16]} 46. Rxe4 {[%emt 0:00:02]} Kf5 {[%emt 0:01:15]} 47. Rb4 {[%emt 0:05:29]} Ra1 {[%emt 0:01:51]} 48. Kf3 {[%emt 0:10:41]} a3 {[%emt 0:00:32]} 49. g4+ {[%emt 0:01:41]} Ke6 {[%emt 0:05:45]} 50. Rb6+ {[%emt 0:00:08]} Kd5 {[%emt 0:00:16]} 51. Rxg6 {[%emt 0:00:59]} Rb1 {[%emt 0:02:32]} 52. Ra6 {[%emt 0:00:06]} Rb3+ {[%emt 0:00:04]} 53. Kg2 {[%emt 0:02:37]} Kd4 {[%emt 0:11:06]} 54. g5 {[%emt 0:00:25]} Kc3 {[%emt 0:00:57]} 55. g6 {[%emt 0:00:08]} Kb2 {[%emt 0:00:03]} 56. g7 {[%emt 0:01:01]} Rb8 {[%emt 0:00:02]} 57. Kf3 {[%emt 0:02:17]} a2 {[%emt 0:02:32]} 58. Ke4 {[%emt 0:00:41]} Rg8 {[%emt 0:00:54]} 59. Rb6+ {[%emt 0:00:33]} Kc2 {[%emt 0:00:28]} 60. Ra6 {[%emt 0:00:04]} Kb2 {[%emt 0:00:13]} 1/2-1/2

[Event "European Womens-ch 2025"]
[Site "Rhodes"]
[Date "2025.04.04"]
[Round "5.41"]
[White "Dwilewicz, Katarzyna"]
[Black "Khachatryan, Anna"]
[Result "0-1"]
[Annotator "ChessBase"]
[ECO "B48"]
[WhiteElo "2203"]
[BlackElo "2091"]
[PlyCount "92"]
[EventDate "2025.03.29"]
[EventType "swiss"]
[EventCountry "GRE"]
[SourceTitle "playchess.com"]
[Source "ChessBase"]
[SourceQuality "1"]
[TimeControl "40/5400+30:1800+30"]

1. e4 {[%emt 0:00:05]} c5 {[%emt 0:00:03]} 2. Nf3 {[%emt 0:00:15]} e6 {[%emt 0:00:18]} 3. d4 {[%emt 0:00:22]} cxd4 {[%emt 0:00:06]} 4. Nxd4 {[%emt 0:00:07]} Nc6 {[%emt 0:00:12]} 5. Nc3 {[%emt 0:00:25]} Qc7 {[%emt 0:00:13]} 6. Be3 {[%emt 0:00:10]} a6 {[%emt 0:00:12]} 7. a3 {[%emt 0:00:15]} Nf6 {[%emt 0:04:10]} 8. f4 {[%emt 0:00:36]} Nxd4 {[%emt 0:06:40]} 9. Qxd4 {[%emt 0:00:35]} b5 {[%emt 0:00:11]} 10. Be2 {[%emt 0:08:10]} Bb7 {[%emt 0:01:45]} 11. Bf3 {[%emt 0:05:27]} Be7 {[%emt 0:16:55]} 12. g4 {[%emt 0:08:44]} O-O {[%emt 0:09:08]} 13. h4 {[%emt 0:12:05]} d5 {[%emt 0:05:51]} 14. exd5 {[%emt 0:18:14]} Nxd5 {[%emt 0:00:15]} 15. Nxd5 {[%emt 0:05:21]} Bxd5 {[%emt 0:00:08]} 16. Bxd5 {[%emt 0:00:31]} Rad8 {[%emt 0:00:55]} 17. O-O-O {[%emt 0:02:48]} Rxd5 {[%emt 0:00:23]} 18. Qe4 {[%emt 0:07:02]} Rfd8 {[%emt 0:02:36]} 19. g5 {[%emt 0:09:56]} Qc6 {[%emt 0:13:14]} 20. Rxd5 {[%emt 0:02:10]} Rxd5 {[%emt 0:00:22]} 21. Bd2 {[%emt 0:12:40]} Bc5 {[%emt 0:23:55]} 22. Rh3 {[%emt 0:01:55]} Bd4 {[%emt 0:03:36]} 23. Rd3 {[%emt 0:00:45]} Qc4 {[%emt 0:06:32]} 24. Kb1 {[%emt 0:01:02]} Bc5 {[%emt 0:01:30]} 25. Qxc4 {[%emt 0:00:32]} bxc4 {[%emt 0:00:01]} 26. Rxd5 {[%emt 0:00:12]} exd5 {[%emt 0:00:01]} 27. h5 {[%emt 0:01:37]} g6 {[%emt 0:00:11]} 28. h6 {[%emt 0:00:53]} f6 {[%emt 0:01:21]} 29. a4 {[%emt 0:00:44]} fxg5 {[%emt 0:00:56]} 30. fxg5 {[%emt 0:00:01]} Kf7 {[%emt 0:00:01]} 31. b4 {[%emt 0:00:10]} Be7 {[%emt 0:02:39]} 32. c3 {[%emt 0:00:45]} Ke6 {[%emt 0:00:08]} 33. Kc2 {[%emt 0:00:20]} Kf5 {[%emt 0:00:45]} 34. Be3 {[%emt 0:01:25]} Ke4 {[%emt 0:01:20]} 35. Bc1 {[%emt 0:00:54]} d4 {[%emt 0:00:42]} 36. cxd4 {[%emt 0:00:15]} Bxb4 {[%emt 0:00:07]} 37. Bb2 {[%emt 0:00:12]} Be1 {[%emt 0:01:02]} 38. d5 {[%emt 0:01:08]} Kxd5 {[%emt 0:00:07]} 39. Bf6 {[%emt 0:00:10]} Ke4 {[%emt 0:00:16]} 40. Bd8 {[%emt 0:00:00]} Kf5 {[%emt 0:00:00]} 41. a5 {[%emt 0:02:20]} Kg4 {[%emt 0:06:40]} 42. Kb2 {[%emt 0:01:39]} Bd2 {[%emt 0:00:17]} 43. Kc2 {[%emt 0:02:15]} Bxg5 {[%emt 0:00:06]} 44. Bb6 {[%emt 0:00:43]} Bf6 {[%emt 0:00:15]} 45. Be3 {[%emt 0:00:10]} Kf3 {[%emt 0:00:35]} 46. Bc1 {[%emt 0:00:08]} g5 {[%emt 0:00:24]} 0-1